[Event "1000GM Memorial Day NY IM-C 2023"]
[Site "New York"]
[Date "2023.05.30"]
[Round "9.3"]
[White "Nemeth, Miklos"]
[Black "Lee, Megan"]
[Result "1-0"]
[ECO "B53"]
[WhiteElo "2452"]
[BlackElo "2261"]
[Annotator "TA"]
[PlyCount "107"]
[EventDate "2023.05.23"]
[EventType "tourn"]
[EventCountry "USA"]
[SourceTitle "playchess.com"]
[Source "ChessBase"]
[SourceQuality "1"]
[TimeControl "5400+30"]

{[%evp 9,107,8,5,4,0,0,13,0,6,0,0,0,0,-6,0,0,0,0,0,0,18,4,24,0,0,0,37,30,37,29,31,35,55,39,52,58,47,50,62,62,56,40,85,56,98,98,115,85,102,104,102,99,118,117,122,118,157,129,154,154,187,154,154,150,154,141,164,164,170,121,130,126,204,196,273,266,278,265,273,265,585,584,584,579,676,618,572,529,758,714,722,720,713,720,718,596,1835,1642,29977,29977]} 1. e4 {[%emt 0:00:30]} c5 {[%emt 0:00:30]} 2. Nf3 {[%emt 0:00:30]} d6 {[%emt 0:00:30]} 3. d4 {[%emt 0:00:30]} cxd4 {[%emt 0:00:30]} 4. Qxd4 {[%emt 0:00:30]} Nc6 {[%emt 0:00:30]} 5. Bb5 {[%emt 0:00:30]} Bd7 {[%emt 0:00:30]} 6. Qe3 {[%emt 0:00:30] B53: Sicilian: 2...d6: Lines with Qxd4.} g6 {[%emt 0:00:30]} 7. O-O {[%emt 0:00:30]} Bg7 {[%emt 0:00:30]} 8. Rd1 {[%emt 0:00:30] The position is equal.} Nf6 {[%emt 0:00:30]} 9. h3 {[%emt 0:00:30]} Qc7 {[%emt 0:00:30]} 10. Nc3 {[%emt 0:00:30]} O-O {[%emt 0:00:30] [#]} 11. Qf4 $146 {[%emt 0:00:30]} ({Predecessor:} 11. Bxc6 Bxc6 12. Nd4 Rac8 13. Qe2 Bd7 14. Bg5 Qc5 15. Be3 Qb4 16. Nb3 Nxe4 17. Nd5 {1-0 Dang,H (2363)-Perez Gormaz,M (2404) Titled Tuesday intern op 17th Aug blitz 2021 (11)}) 11... a6 {[%emt 0:00:30]} 12. Be2 {[%emt 0:00:30]} Rac8 {[%emt 0:00:30]} 13. Qh4 {[%emt 0:00:30]} Qa5 {[%emt 0:00:30]} 14. Bd2 {[%emt 0:00:30][%cal Oc3d5]} Qb6 {[%emt 0:00:30]} 15. a3 {[%emt 0:00:30]} Rfe8 {[%emt 0:00:30]} (15... Qxb2 $2 16. Rdb1 Qxc2 17. Ra2 $18 (17. Rxb7 $2 {is the wrong capture.} Nd4 $19) (17. Rxb7 $2 Nd4 $19)) 16. Na4 {[%emt 0:00:30]} Qc7 {[%emt 0:00:30]} 17. Be3 {[%emt 0:00:30]} Ne5 {[%emt 0:00:30]} 18. Nb6 {[%emt 0:00:30]} Nxf3+ {[%emt 0:00:30]} 19. Bxf3 {[%emt 0:00:30]} Rcd8 {[%emt 0:00:30]} 20. c3 {[%emt 0:00:30]} Bc6 {[%emt 0:00:30]} 21. a4 {[%emt 0:00:30]} Nd7 {[%emt 0:00:30]} 22. Nd5 {[%emt 0:00:30]} Bxd5 {[%emt 0:00:30]} 23. exd5 {[%emt 0:00:30]} Ne5 {[%emt 0:00:30]} 24. Be2 {[%emt 0:00:30]} Rc8 {[%emt 0:00:30]} 25. Rd4 {[%emt 0:00:30]} Nd7 {[%emt 0:00:30]} 26. Rb4 {[%emt 0:00:30] Black is weak on the light squares} Nc5 {[%emt 0:00:30]} 27. a5 {[%emt 0:00:30]} Rb8 {[%emt 0:00:30]} 28. Rc4 {[%emt 0:00:30] [#] And now b4 would win. White has more active pieces. The black rooks are badly placed.} Bf6 {[%emt 0:00:30]} 29. Qg3 {[%emt 0:00:30]} Qd7 {[%emt 0:00:30]} 30. Qg4 {[%emt 0:00:30]} Qxg4 {[%emt 0:00:30]} 31. hxg4 {[%emt 0:00:30]} e6 {[%emt 0:00:30]} 32. dxe6 {[%emt 0:00:30]} Nxe6 {[%emt 0:00:30]} 33. Rd1 {[%emt 0:00:30]} Be7 {[%emt 0:00:30]} 34. Bf3 {[%emt 0:00:30]} Bg5 {[%emt 0:00:30]} 35. Ba7 {[%emt 0:00:30] This pair of bishops is nice.} ({Much less strong is} 35. Rxd6 Bxe3 36. fxe3 Re7) 35... Rbd8 {[%emt 0:00:30]} 36. g3 {[%emt 0:00:30]} ({But not} 36. Bxb7 $6 Re7 $14) 36... Rd7 {[%emt 0:00:30]} 37. Bd5 {[%emt 0:00:30]} Ra8 {[%emt 0:00:30]} 38. Bb6 {[%emt 0:00:30]} Bd8 {[%emt 0:00:30]} 39. b4 {[%emt 0:00:30]} ({Better is} 39. Bxd8 $18 Raxd8 40. Re1) 39... Bxb6 $16 {[%emt 0:00:30]} 40. axb6 {[%emt 0:00:30]} Re8 {[%emt 0:00:30]} (40... a5 $16) 41. f4 $18 {[%emt 0:00:30]} Kf8 {[%emt 0:00:30]} (41... Ng7 $142 42. Kf2 Ra8) 42. Kf2 {[%emt 0:00:30]} Nd8 {[%emt 0:00:30]} 43. Rc7 {[%emt 0:00:30]} Ree7 {[%emt 0:00:30]} 44. Rc8 {[%emt 0:00:30][%cal Od5b7]} Kg7 $2 {[%emt 0:00:30]} (44... Re8 {is a better chance.} 45. g5 Ne6 46. Rxe8+ Kxe8) 45. Bb3 {[%emt 0:00:30]} Nc6 {[%emt 0:00:30]} 46. Ba4 {[%emt 0:00:30]} d5 {[%emt 0:00:30]} 47. Bxc6 {[%emt 0:00:30]} bxc6 {[%emt 0:00:30]} 48. Rxc6 {[%emt 0:00:30][%mdl 4096] Endgame KRR-KRR} f6 {[%emt 0:00:30]} 49. Re1 {[%emt 0:00:30] Threatens to win with Rxe7+.} Rf7 {[%emt 0:00:30]} 50. Ke3 {[%emt 0:00:30]} d4+ {[%emt 0:00:30]} 51. cxd4 {[%emt 0:00:30]} Rfe7+ {[%emt 0:00:30]} 52. Kf2 {[%emt 0:00:30] aiming for Rxe7+.} Rxe1 {[%emt 0:00:30]} 53. Kxe1 {[%emt 0:00:30] Threatening mate with Rc7.} Rxd4 {[%emt 0:00:30] [#]} 54. b5 $1 {[%emt 0:00:30][%mdl 576] Promotion.   Weighted Error Value: White=0.11 (very precise) /Black=0.36} 1-0

[Event "1000GM Memorial Day NY IM-C 2023"]
[Site "New York"]
[Date "2023.05.29"]
[Round "9.4"]
[White "Mou, Iris"]
[Black "Zumsande, Martin"]
[Result "1/2-1/2"]
[ECO "C02"]
[WhiteElo "2002"]
[BlackElo "2454"]
[Annotator "TA"]
[PlyCount "34"]
[EventDate "2023.05.23"]
[EventType "tourn"]
[EventCountry "USA"]
[SourceTitle "playchess.com"]
[Source "ChessBase"]
[SourceQuality "1"]
[TimeControl "5400+30"]

{[%evp 11,34,0,1,12,14,0,0,0,0,7,8,6,18,0,0,0,0,0,0,0,0,0,0,-47,-52]} 1. e4 {[%emt 0:00:01]} e6 {[%emt 0:00:04]} 2. d4 {[%emt 0:00:10]} d5 {[%emt 0:00:08]} 3. e5 {[%emt 0:00:06]} c5 {[%emt 0:00:07]} 4. c3 {[%emt 0:00:07]} Nc6 {[%emt 0:00:06]} 5. Nf3 {[%emt 0:00:09]} Bd7 {[%emt 0:00:07]} 6. Be2 {[%emt 0:00:09]} Rc8 {[%emt 0:00:20]} 7. O-O {[%emt 0:01:34] C02: French: Advance Variation.} a6 {[%emt 0:00:22]} 8. Be3 {[%emt 0:05:05]} cxd4 {[%emt 0:04:45]} 9. cxd4 {[%emt 0:00:16] The position is equal.} Nge7 {[%emt 0:00:20][%cal Bg8e7,Be7f5,Bf5e3][%mdl 32]} 10. Nc3 {[%emt 0:04:26]} Nf5 {[%emt 0:00:42]} 11. Rc1 {[%emt 0:04:57] [#]} Na5 $146 {[%emt 0:08:14][%cal Bc6a5,Ba5c4,Bc4a3][%mdl 32]} ({Predecessor:} 11... Be7 12. Bd3 Nxe3 13. fxe3 O-O 14. Qe2 f5 {½-½ Neukirch,D (2063)-Burghardt,P (1902) Sachsen-Anhalt Landesliga-B 1920 2019 (5.2)}) 12. Bd3 {[%emt 0:05:46] Hoping for Bxf5.} Nxe3 {[%emt 0:04:44]} 13. fxe3 {[%emt 0:00:10]} Be7 {[%emt 0:04:04]} 14. Qe1 {[%emt 0:07:18]} O-O {[%emt 0:05:04]} 15. Kh1 {[%emt 0:05:03]} Nc4 {[%emt 0:21:19]} 16. b3 {[%emt 0:04:48]} Na3 {[%emt 0:00:36]} 17. Qg3 {[%emt 0:09:34]} (17. e4 $11) 17... Qa5 {[%emt 0:13:27] Weighted Error Value: White=0.09 (flawless) /Black=0.01 (flawless)} 1/2-1/2

[Event "1000GM Memorial Day NY IM-C 2023"]
[Site "New York"]
[Date "2023.05.30"]
[Round "9.5"]
[White "Moor, Nathaniel Philip"]
[Black "Mahajan, Rushaan"]
[Result "1-0"]
[ECO "D52"]
[WhiteElo "2185"]
[BlackElo "2279"]
[Annotator "TA"]
[PlyCount "123"]
[EventDate "2023.05.23"]
[EventType "tourn"]
[EventCountry "USA"]
[SourceTitle "playchess.com"]
[Source "ChessBase"]
[SourceQuality "1"]
[TimeControl "5400+30"]

{[%evp 19,123,0,4,6,14,10,18,16,16,17,24,23,31,24,45,36,27,29,52,52,230,219,222,127,118,108,156,146,156,156,156,139,156,156,150,143,213,159,206,142,143,132,134,142,137,143,130,137,141,104,97,46,48,56,32,41,124,140,116,116,145,145,150,145,145,145,145,134,141,127,139,85,85,89,87,83,83,88,252,224,844,201,283,267,1850,560,29957,29956,29961,29966,29963,29965,29966,29966,29968,29970,29978,29979,29979,29980,29983,29984,29984,29985,29984,29985]} 1. d4 Nf6 2. Nf3 e6 3. c4 d5 4. Nc3 Nbd7 5. Bg5 c6 6. cxd5 exd5 7. e3 Qa5 8. Bd3 Ne4 9. O-O $1 {9.0-0 scores better than 9.Qc2.} Nxg5 10. Nxg5 Nf6 11. a3 $1 {D52: Queen's Gambit Declined: Cambridge Springs Variation.} h6 12. Nf3 {[#]} Qd8 $146 ({Predecessor:} 12... Bg4 13. h3 Be6 14. b4 Qc7 15. Rc1 a6 16. Ne5 Bd6 17. f4 O-O 18. Qc2 Qe7 {1-0 Mehlhorn,U (2513)-Gil,M (2603) Bogolyubov Memorial-A email 2010}) 13. Ne5 {The position is equal.} Bd6 14. f4 Be6 15. Qf3 h5 16. h3 a6 17. b4 (17. Rae1 {is interesting.} O-O 18. Qg3 Ne8 19. Bc2) 17... Kf8 18. Na4 Qe7 19. Nc5 {[%cal Od3g6]} Bxe5 $2 (19... Kg8 $14) 20. fxe5 $18 (20. dxe5 $6 Nd7 $16) 20... Nd7 21. Ra2 (21. Nxb7 $6 Nxe5 22. dxe5 Qxb7 $16) (21. Nxe6+ $1 $18 Qxe6 22. Bf5) 21... Nxc5 $16 22. bxc5 (22. dxc5 $6 h4 $11) 22... Kg8 (22... Rh6 $142 23. Rb1 Rc8) 23. Rb1 g6 24. Rab2 Bc8 25. Rf2 Kg7 {Black is weak on the dark squares} 26. Qg3 h4 27. Qf4 Re8 (27... Rh5 $16 {was called for.} 28. Qf6+ Qxf6 29. Rxf6 Rg5) 28. e4 Be6 (28... dxe4 $16 29. Qxe4 (29. Bxe4 Be6 $16) 29... Qg5) 29. Qf6+ Kh6 {[#]} 30. Rxb7 $3 {[%mdl 512]} Qxf6 31. exf6 dxe4 32. Bxe4 Rac8 33. Rb6 {[%csl LRa6,LRc6] White has more active pieces.} Bd7 34. Bd3 a5 35. Ra6 (35. Ba6 $16) 35... Ra8 $14 36. Rxa8 Rxa8 {[%mdl 4096] Endgame KRB-KRB} 37. Bc4 Be8 {[#]} ({Black should try} 37... Bf5 $14) 38. d5 $1 $16 cxd5 39. Bxd5 Rc8 40. Rc2 {c6 is the strong threat.} Bc6 41. Bxc6 Rxc6 {KR-KR} 42. Kf2 Kg5 43. Ke3 Kxf6 44. Kd4 {Kd5 would be deadly.} Ke6 45. Rb2 ({Better is} 45. Rf2) 45... Kd7 {[#]} 46. Rb7+ $1 Rc7 47. Rb5 Ra7 48. Kd5 a4 $2 (48... Kc7 $16) 49. Rb4 $18 g5 $2 (49... Kc7 50. Rf4 (50. Rxh4 Ra8 $18) 50... Kc8 51. Rxh4 Rd7+ 52. Kc6 Rc7+ 53. Kd6 Rd7+ 54. Kc6 Rc7+ 55. Kb5 Rb7+ 56. Kxa4 Kd7) 50. Rg4 $2 (50. Rb8 Rc7 51. Ra8) 50... f6 (50... Ra6 $142 51. Rxg5 Rf6) 51. Rb4 {Hoping for Rb8.} Ke7 $2 (51... Kc8 52. Ke6 Rc7 53. Kxf6 (53. Rxa4 Rxc5 54. Kxf6 Kd8 $18) 53... Rxc5 54. Rxa4 Kd8) 52. Re4+ (52. Kc6 $142 {Intending Rb7+ and mate.} Ke6 53. Kb6) 52... Kf7 53. c6 {[%cal Bc5c6,Bc6c7][%mdl 32] Against Rd7+. White mates.} Re7 54. Rxa4 Re5+ 55. Kd6 Re6+ 56. Kc5 Ke7 57. Rd4 Re2 58. c7 Rc2+ 59. Kb6 Rb2+ 60. Kc6 Rc2+ 61. Kb7 Rb2+ 62. Rb4 {Weighted Error Value: White=0.31/Black=0.32} 1-0